{"text_format":"1","workbook":"xlsx","n_sheets":1,"sheets":["Feuil2"],"not_rendered":{"charts":0,"images":0,"macros":1,"external_links":0,"defined_names":0,"comments":0,"pivot_tables":0},"unopened":[],"bounds":{"document_bytes":16777216,"sheet_cells":100000,"rows_first":2000,"rows_last":500,"rows_between":2000,"halvings":0,"cell_chars":16384,"cell_head_chars":4096},"cells_cut":0,"cells_raw":0,"read":"whole","date_system":"1900"}

{"sheet":"Feuil2","index":0,"n_rows":45,"n_cols":9,"rows_kept":45,"cut":false,"hidden":false,"merged":[[38,0,38,9],[29,0,29,5],[22,0,22,5],[8,0,8,17],[16,0,16,13],[18,0,18,9],[20,0,20,13],[2,0,2,10],[0,0,0,5],[10,3,10,7],[11,3,11,7],[12,3,12,7],[13,3,13,7],[14,3,14,7]]}
["Nouveau jeu simulateur : "]
[]
["2 équipes misent une somme de départ de 100€ chacunes, qu'elles répartissent comme elles veulent sur la boule A, B, C et D."]
[]
[null,"Mise départ","Boule A","Boule B","Boule C","Boule D"]
["Equipe n°1",{"$f":"SUM(C6:F6)","v":100},40,10,20,30]
["Equipe n°2",{"$f":"SUM(C7:F7)","v":100},10,30,40,20]
[]
["Le tirage des 4 boules (Boule A, Boule B, Boule C et Boule D) est réalisé. Chaque boule tirée correspond à la fois à une somme d'argent perdu, mais également à un score. Après chaque tirage, la boule est remise dans le panier."]
[]
[null,"Boules","Argent perdu","Score associé"]
[null,"Boule -0€",0,5000]
[null,"Boule -5€",-5,4500]
[null,"Boule -20€",-20,2200]
[null,"Boule -40€",-40,0]
[]
["Le but du jeu est d'obtenir la meilleure combinaison possible (nombre de point le plus important); Le jeu s'arrête quand l'argent final est <=100 € (et donc que OK s'affiche)."]
[]
["On cherche à obtenir une macro qui calculerait cette meilleure combinaison possible."]
[]
["Le nombre d'équipe et de boule peut-être modifié et adapté pour chaque partie. Dans notre exemple, on peut rester sur 2 équipes et 4 boules."]
[]
["1) Exemple 1 : Meilleure combinaison (trouvée manuellement)"]
[null,null,null,"Boule A","Boule B","Boule C","Boule D",null,"Nbre de points"]
[null,null,"Mise départ",-20,-20,-20,0,"Argent final",{"$f":"SUM(SUMIFS(D12:D15,C12:C15,D25),SUMIFS(D12:D15,C12:C15,E25),SUMIFS(D12:D15,C12:C15,F25),SUMIFS(D12:D15,C12:C15,G25))","v":11600}]
[null,"Equipe n°1",100,{"$f":"IF((C6+D$25)>=0,(C6+D$25),0)","v":20},0,0,30,{"$f":"SUM(D26:G26)","v":50}]
[null,"Equipe n°2",100,0,10,20,20,{"$f":"SUM(D27:G27)","v":50}]
[null,null,null,null,null,null,null,{"$f":"IF(SUM(H26:H27)<=100,\"OK car < 100€\",\"Non OK car >100€\")","v":"OK car < 100€"}]
[]
["2) Exemple 2 : Combinaison qui fonctionne mais score inférieur"]
[]
[null,null,null,"Boule A","Boule B","Boule C","Boule D",null,"Nbre de points"]
[null,null,"Mise départ",-40,0,-40,0,"Argent final",{"$f":"SUM(SUMIFS(D12:D15,C12:C15,D33),SUMIFS(D12:D15,C12:C15,E33),SUMIFS(D12:D15,C12:C15,F33),SUMIFS(D12:D15,C12:C15,G33))","v":10000}]
[null,"Equipe n°1",100,{"$f":"IF((C6+D$33)>=0,(C6+D$33),0)","v":0},10,0,30,{"$f":"SUM(D34:G34)","v":40}]
[null,"Equipe n°2",100,0,30,0,20,{"$f":"SUM(D35:G35)","v":50}]
[null,null,null,null,null,null,null,{"$f":"IF(SUM(H34:H35)<=100,\"OK car < 100€\",\"Non OK car >100€\")","v":"OK car < 100€"}]
[]
[]
["POUR MACCRO"]
[]
[null,null,null,"Boule A","Boule B","Boule C","Boule D",null,"Nbre de points"]
[null,null,"Mise départ",null,null,null,null,"Argent final",{"$f":"SUM(SUMIFS(D12:D15,C12:C15,D42),SUMIFS(D12:D15,C12:C15,E42),SUMIFS(D12:D15,C12:C15,F42),SUMIFS(D12:D15,C12:C15,G42))","v":20000}]
[null,"Equipe n°1",100,{"$f":"IF((C6+D$42)>=0,(C6+D$42),0)","v":40},10,20,30,{"$f":"SUM(D43:G43)","v":100}]
[null,"Equipe n°2",100,10,30,40,20,{"$f":"SUM(D44:G44)","v":100}]
[null,null,null,null,null,null,null,{"$f":"IF(SUM(H43:H44)<=100,\"OK car < 100€\",\"Non OK car >100€\")","v":"Non OK car >100€"}]